bitfinex-derivatives/quotes_ETHF0:USTF0_20250503
["timestamp","ask_amount","ask_price","bid_price","bid_amount"]
[1746310204816,6.48912654,1838.4,1838.3,11.23107971]
[1746310205018,6.76093953,1838.4,1838.3,8.02327971]
[1746310205219,6.76093953,1838.4,1838.3,6.93559971]
[1746310205417,6.76093953,1838.4,1838.3,8.02327971]
[1746310205621,5.67327953,1838.4,1838.3,8.02327971]
[1746310207021,6.76090953,1838.4,1838.3,8.02327971]
[1746310209125,1.35944299,1838.4,1838.3,8.02327971]
[1746310209425,3.61268683,1838.5,1838.4,1.08763]
[1746310209621,4.70025683,1838.5,1838.4,7.78402971]
[1746310210213,4.97206982,1838.5,1838.4,10.41439971]
[1746310210526,4.97206982,1838.5,1838.4,11.50202971]
[1746310211022,4.70025683,1838.5,1838.4,11.50202971]
[1746310211526,4.97206982,1838.5,1838.4,10.41439971]
[1746310212723,1.35938299,1838.5,1838.4,10.41439971]
[1746310213621,9.56718299,1838.5,1838.4,3.718]
[1746310213821,15.01618299,1838.5,1838.4,3.718]
[1746310214227,1.08774,1838.2,1838.1,7.7933]
[1746310214427,1.08774,1838.2,1838.1,9.19539971]
[1746310217232,1.08774,1838.2,1838.1,3.28339971]
[1746310217840,4.69749745,1838.2,1838.1,3.28339971]
[1746310218134,4.69749745,1838.2,1838.1,1.8813]
[1746310218322,6.85211044,1838.2,1838.1,1.8813]
[1746310221338,7.54581106,1838.2,1838.1,1.8813]
[1746310222933,7.54581106,1838.2,1838.1,3.28339971]
[1746310228339,7.54581106,1838.2,1838.1,1.8813]
[1746310228526,9.29151106,1838.2,1838.1,1.8813]
[1746310232240,11.09638978,1838.2,1838.1,1.8813]
[1746310232740,11.09638978,1838.2,1838.1,3.28339971]
[1746310233939,9.35068978,1838.2,1838.1,3.28339971]
[1746310234445,9.07887679,1838.2,1838.1,3.28339971]
[1746310235142,9.35068978,1838.2,1838.1,3.28339971]
[1746310236244,12.55848978,1838.2,1838.1,3.28339971]
[1746310241041,12.55848978,1838.2,1838.1,1.8813]
[1746310241248,1.35961299,1838.1,1838.0,0.63662714]
[1746310241449,1.35961299,1838.1,1837.8,0.1]
[1746310241450,1.35973299,1837.9,1837.8,7.14e-06]
[1746310241643,4.56753299,1837.9,1837.8,7.14e-06]
[1746310241841,9.56753299,1837.9,1837.8,7.14e-06]
[1746310242346,11.40563299,1837.9,1837.8,7.14e-06]
[1746310244042,6.40563299,1837.9,1837.8,7.14e-06]
[1746310244549,3.2078,1837.9,1837.8,2.49008685]
[1746310245151,3.2078,1837.9,1837.8,6.20808685]
[1746310245349,3.2078,1837.9,1837.8,9.77738685]
[1746310246751,19.53016883,1837.9,1837.8,9.77738685]
[1746310249151,20.61808883,1837.9,1837.8,9.77738685]
[1746310249355,19.53016883,1837.9,1837.8,9.77738685]
[1746310249652,16.32236883,1837.9,1837.8,9.77738685]
[1746310250750,7.20327798,1837.9,1837.8,9.77738685]
[1746310250953,4.2957,1838.0,1837.9,1.08792]
[1746310251253,4.2957,1838.0,1837.9,8.03681971]
[1746310253355,4.2957,1838.0,1837.9,6.63472]
[1746310253552,3.47961299,1838.0,1837.9,8.03681971]
[1746310257956,4.56747299,1838.0,1837.9,4.80592]
[1746310258159,6.35007299,1838.0,1837.9,4.80592]
[1746310259056,6.35007299,1838.0,1837.9,6.57142]
[1746310259657,3.47961299,1838.0,1837.9,7.97351971]
[1746310260558,3.2078,1838.0,1837.9,7.97351971]
[1746310261467,4.96056005,1838.1,1838.0,1.08786]
[1746310261757,6.76103358,1838.1,1838.0,5.99715971]
[1746310262167,6.76103358,1838.1,1838.0,9.71515971]
[1746310264161,6.76103358,1838.1,1838.0,8.62729971]
[1746310264759,6.48922059,1838.1,1838.0,8.62729971]
[1746310264954,6.76103358,1838.1,1838.0,8.62729971]
[1746310266361,8.54243358,1838.1,1838.0,8.62729971]
[1746310266558,9.23615605,1838.1,1838.0,8.62729971]
[1746310269165,7.45475605,1838.1,1838.0,8.62729971]
[1746310270767,7.45475605,1838.1,1838.0,9.71515971]
[1746310273463,7.45475605,1838.1,1838.0,5.12009971]
[1746310273667,9.35735605,1838.1,1838.0,5.12009971]
[1746310274469,9.35735605,1838.1,1838.0,7.00159971]
[1746310276270,12.96384788,1838.1,1838.0,7.00159971]
[1746310279473,12.96384788,1838.1,1838.0,5.5995]
[1746310279674,12.96384788,1838.1,1838.0,7.00159971]
[1746310280873,9.35735605,1838.1,1838.0,7.00159971]
[1746310281673,9.35735605,1838.1,1838.0,8.76619971]
[1746310283761,9.35735605,1838.1,1838.0,3.718]
[1746310283969,16.51345143,1838.1,1838.0,3.718]
[1746310284275,1.08792,1837.9,1837.8,1.84750714]
[1746310284475,1.43311538,1837.9,1837.8,1.84750714]
[1746310284868,3.47912837,1837.9,1837.8,1.84750714]
[1746310285070,3.47912837,1837.9,1837.8,5.56550714]
[1746310285476,3.47912837,1837.9,1837.8,6.96760685]
[1746310285677,3.47912837,1837.9,1837.8,8.75900685]
[1746310286277,3.13393299,1837.9,1837.8,8.75900685]
[1746310287576,1.08792,1837.9,1837.8,9.84698685]
[1746310287778,4.56753299,1838.0,1837.8,9.84698685]
[1746310287969,4.56753299,1838.0,1837.9,3.19349971]
[1746310288170,3.47961299,1838.0,1837.9,9.80041971]
[1746310288378,8.88103358,1838.0,1837.9,9.80041971]
[1746310288579,9.96889358,1838.0,1837.9,8.71249971]
[1746310289478,8.88103358,1838.0,1837.9,9.80041971]
[1746310290779,9.96889358,1838.0,1837.9,9.80041971]
[1746310290979,8.88103358,1838.0,1837.9,9.80041971]
[1746310291582,5.67323358,1838.0,1837.9,9.80041971]
[1746310291781,5.40142059,1838.0,1837.9,9.80041971]
[1746310291972,6.09516393,1838.0,1837.9,14.80041971]
[1746310292173,7.20327798,1838.1,1838.0,1.08786]
[1746310292374,7.20327798,1838.1,1838.0,11.06575971]
[1746310292580,7.20327798,1838.1,1838.0,16.06575971]
[1746310293178,9.00409748,1838.3,1838.2,1.08774]
[1746310293381,9.00409748,1838.3,1838.2,2.48983971]
[1746310293980,9.00409748,1838.3,1838.2,4.36973971]
[1746310294180,9.00409748,1838.3,1838.2,8.08773971]
[1746310296384,3.87651748,1838.5,1838.4,1.08763]
[1746310296579,3.87651748,1838.5,1838.4,2.48972971]
[1746310297079,5.63171748,1838.5,1838.4,2.48972971]
[1746310297281,7.51221748,1838.5,1838.4,6.20772971]
[1746310297988,5.63171748,1838.5,1838.4,6.20772971]
[1746310298181,3.87651748,1838.5,1838.4,6.20772971]
[1746310300288,0.27181299,1838.5,1838.4,6.20772971]
[1746310300489,2.00991299,1838.5,1838.4,6.20772971]
[1746310303191,3.70141299,1838.5,1838.4,6.20772971]
[1746310304698,3.09748299,1838.5,1838.4,4.80563]
[1746310304893,4.78898299,1838.5,1838.4,3.718]
[1746310305090,1.35948299,1838.4,1838.2,2.9676]
[1746310305399,1.35949299,1838.3,1838.1,2.86376]
[1746310305700,1.8869,1838.2,1838.1,4.26585971]
[1746310306191,0.27181299,1838.3,1838.2,1.08774]
[1746310306391,2.15871299,1838.3,1838.2,4.55744]
[1746310306993,1.8869,1838.3,1838.2,4.55744]
[1746310307194,1.8869,1838.3,1838.2,8.27544]
[1746310308299,3.11916299,1838.4,1838.3,1.08768]
[1746310308501,3.11916299,1838.4,1838.3,6.18597971]
[1746310308796,3.11916299,1838.4,1838.3,4.78388]
[1746310309004,3.87651748,1838.5,1838.4,1.08763]
[1746310309199,4.96408748,1838.5,1838.4,3.23349971]
[1746310309502,6.83468748,1838.5,1838.3,6.67045]
[1746310309696,1.8597,1838.4,1838.3,8.56245]
[1746310310297,1.8597,1838.4,1838.3,9.96454971]
[1746310313305,2.13151299,1838.4,1838.3,9.96454971]
[1746310318402,3.2078,1838.5,1838.4,1.08763]
[1746310318603,5.0431,1838.5,1838.4,4.34302971]
[1746310318803,5.0431,1838.5,1838.4,2.94093]
[1746310319108,5.0431,1838.5,1838.4,6.65893]
[1746310320204,6.13067,1838.5,1838.4,6.65893]
[1746310320410,6.40248299,1838.5,1838.4,4.80563]
[1746310321310,6.40248299,1838.5,1838.4,3.718]
[1746310322410,5.31491299,1838.5,1838.4,4.80563]
[1746310322598,3.47961299,1838.5,1838.4,6.62833]
[1746310322803,3.47961299,1838.5,1838.4,8.03042971]
[1746310324008,0.27181299,1838.5,1838.4,8.03042971]
[1746310325207,1.35938299,1838.5,1838.4,8.03042971]
[1746310325413,3.13098299,1838.5,1838.4,8.03042971]
[1746310325915,3.13098299,1838.5,1838.4,5.12009971]
[1746310326406,4.82238299,1838.5,1838.4,5.12009971]
[1746310326907,9.82238299,1838.5,1838.4,3.718]
[1746310327113,1.08774,1838.2,1838.1,2.91259]
[1746310328112,1.08778,1838.2,1838.0,5.0352]
[1746310328314,0.27181299,1838.2,1838.1,1.40209971]
[1746310328506,0.27181299,1838.2,1838.1,3.11819971]
[1746310328707,0.27181299,1838.2,1838.1,1.7161]
[1746310329114,0.27181299,1838.2,1838.1,2.8039]
[1746310329411,3.60931299,1838.3,1838.2,1.08774]
[1746310329611,3.60931299,1838.3,1838.2,2.80384]
[1746310330203,3.60931299,1838.3,1838.2,6.52184]
[1746310330613,3.47961299,1838.4,1838.3,1.08768]
[1746310330810,3.47961299,1838.4,1838.3,6.34318]
[1746310331108,3.47961299,1838.4,1838.3,10.06118]
[1746310334711,3.84581299,1838.5,1838.4,1.08763]
[1746310334913,3.84581299,1838.5,1838.4,2.88823]
[1746310335114,4.56716299,1838.6,1838.5,1.08757]
[1746310335315,3.47961299,1838.6,1838.5,4.29026971]
[1746310335619,3.47961299,1838.6,1838.5,2.88817]
[1746310336212,4.56712299,1838.6,1838.5,6.60617]
[1746310337421,3.47961299,1838.6,1838.5,6.60617]
[1746310337623,3.47961299,1838.6,1838.5,8.00826971]
[1746310337810,0.27181299,1838.6,1838.5,8.00826971]
[1746310339122,0.9653718,1838.6,1838.5,8.00826971]
[1746310342223,0.9653718,1838.6,1838.5,9.67666971]
[1746310343925,3.87930623,1838.6,1838.5,9.67666971]
[1746310345127,3.60749324,1838.6,1838.5,9.67666971]
[1746310347226,3.87930623,1838.7,1838.6,1.08751]
[1746310347527,3.87930623,1838.7,1838.6,6.00200971]
[1746310347726,7.08710623,1838.7,1838.6,6.00200971]
[1746310347929,8.17455623,1838.7,1838.6,6.00200971]
[1746310348127,7.08710623,1838.7,1838.6,6.00200971]
[1746310348625,8.17455623,1838.7,1838.6,6.00200971]
[1746310348828,7.08710623,1838.7,1838.6,6.00200971]
[1746310350325,7.7806053,1838.7,1838.6,6.00200971]
[1746310351124,4.5728053,1838.7,1838.6,6.00200971]
[1746310352131,4.30099231,1838.7,1838.6,6.00200971]
[1746310352935,4.5728053,1838.7,1838.6,6.00200971]
[1746310353328,4.30099231,1838.7,1838.6,6.00200971]
[1746310353529,4.30099231,1838.7,1838.6,11.00200971]
[1746310353735,4.30099231,1838.7,1838.6,14.20980971]
[1746310353930,2.15623423,1838.7,1838.6,14.20980971]
[1746310355431,1.46273516,1838.9,1838.8,1.08739]
[1746310355730,1.73454815,1838.9,1838.8,6.05648971]
[1746310356133,1.73454815,1838.9,1838.8,9.77448971]
[1746310356333,1.73454815,1838.9,1838.8,11.47808971]
[1746310358133,3.58334815,1838.9,1838.8,11.47808971]
[1746310358434,14.86870815,1838.9,1838.2,3.2078]
[1746310358731,0.27181299,1838.3,1838.1,7.19119296]
[1746310358935,1.7055,1838.2,1838.1,7.19119296]
[1746310359126,1.97731299,1838.2,1838.1,8.27896296]
[1746310359328,1.97731299,1838.2,1838.1,10.29259267]
[1746310359528,1.97731299,1838.2,1838.1,17.61108082]
[1746310362536,2.09641299,1838.3,1838.2,1.08774]
[1746310362737,2.09641299,1838.3,1838.2,3.21656971]
[1746310363330,2.09641299,1838.3,1838.2,6.93456971]
[1746310369732,5.0291,1838.4,1838.3,1.08768]
[1746310369932,5.0291,1838.4,1838.3,3.08020971]
[1746310370236,5.0291,1838.4,1838.3,8.47700971]
[1746310370539,1.8213,1838.4,1838.3,8.47700971]
[1746310370740,1.8078,1838.5,1838.4,1.08763]
[1746310371038,1.8078,1838.5,1838.4,3.16005971]
[1746310371234,1.8078,1838.5,1838.4,6.59613]
[1746310372140,3.5062,1838.5,1838.4,6.59613]
[1746310373043,3.77801299,1838.5,1838.4,6.59613]
[1746310376841,3.77801299,1838.5,1838.4,6.87805971]
[1746310379949,0.27181299,1838.5,1838.4,6.87805971]
[1746310381651,2.08031299,1838.6,1838.5,1.08757]
[1746310382154,2.08031299,1838.6,1838.5,4.80557]
[1746310391053,3.16782299,1838.6,1838.5,4.80557]
[1746310392054,2.08031299,1838.6,1838.5,4.80557]
[1746310392552,3.16782299,1838.6,1838.5,4.80557]
[1746310393353,8.16782299,1838.6,1838.5,3.718]
[1746310394156,1.35938299,1838.5,1838.4,1.08761]
[1746310394454,5.97817,1838.5,1838.4,1.36953971]
[1746310394654,2.77037,1838.5,1838.4,1.36953971]
[1746310395156,2.77037,1838.5,1838.4,5.08753971]
[1746310395356,1.6828,1838.5,1838.4,6.78013971]
[1746310396450,2.77037,1838.5,1838.4,6.78013971]
[1746310396856,5.97817,1838.5,1838.4,6.78013971]
[1746310397053,6.24998299,1838.5,1838.4,5.69252971]
[1746310397260,6.24998299,1838.5,1838.4,3.718]
[1746310397261,5.97817,1838.5,1838.4,3.718]
[1746310397453,6.24998299,1838.5,1838.4,3.718]
[1746310398270,1.08763,1838.4,1838.3,1.08767]
[1746310398460,2.87593,1838.4,1838.3,1.08767]
[1746310398663,2.87593,1838.4,1838.3,1.36959971]
[1746310398861,4.62233,1838.4,1838.3,1.36959971]
[1746310399163,4.62233,1838.4,1838.3,5.08759971]
[1746310399769,4.89414299,1838.4,1838.3,3.718]
[1746310399967,6.54284299,1838.4,1838.3,3.718]
[1746310400160,1.08777,1838.2,1838.1,1.0878]
[1746310400357,1.35958299,1838.2,1838.1,1.36972971]
[1746310400557,1.35958299,1838.2,1838.1,1.0878]
[1746310400766,3.14788299,1838.2,1838.1,1.0878]
[1746310400967,1.7883,1838.2,1838.1,1.0878]
[1746310401271,1.7883,1838.2,1838.1,2.8052]
[1746310401765,2.87604,1838.2,1838.1,2.8052]
[1746310402167,1.7883,1838.2,1838.1,2.8052]
[1746310402467,2.87604,1838.2,1838.1,2.8052]
[1746310402870,3.14785299,1838.2,1838.1,2.8052]
[1746310403272,3.14785299,1838.2,1838.1,1.7174]
[1746310403671,1.0878,1838.1,1838.0,2.79191]
[1746310403972,2.8185,1838.1,1838.0,2.79191]
[1746310404170,4.5742,1838.1,1838.0,6.79183971]
[1746310404370,4.84601299,1838.1,1838.0,6.79183971]
[1746310404872,4.84601299,1838.1,1838.0,5.70402971]
[1746310404873,3.75821299,1838.1,1838.0,5.70402971]
[1746310405071,8.05381299,1838.1,1838.0,3.99992971]
[1746310405371,8.05381299,1838.1,1838.0,0.28192971]
[1746310406069,8.05381299,1838.1,1838.0,1.96782971]
[1746310409474,8.05381299,1838.1,1838.0,3.05568971]
[1746310410070,8.05381299,1838.1,1838.0,6.77368971]
[1746310410471,8.05381299,1838.1,1838.0,5.68582971]
[1746310411170,8.05381299,1838.1,1838.0,1.96782971]
[1746310412275,8.05381299,1838.1,1838.0,5.68582971]
[1746310413475,4.84601299,1838.1,1838.0,5.68582971]
[1746310413671,8.05381299,1838.1,1838.0,5.68582971]
[1746310415475,8.05381299,1838.1,1838.0,3.99992971]
[1746310416076,8.05381299,1838.1,1838.0,0.28192971]
[1746310424782,1.08786,1838.0,1837.9,7.2486]
[1746310425283,1.08786,1838.0,1837.9,10.9666]
[1746310425488,1.08786,1838.0,1837.9,11.24852971]
[1746310426183,1.08786,1838.0,1837.9,12.33644971]
[1746310428685,1.35967299,1838.0,1837.9,12.33644971]
[1746310429486,1.35967299,1838.0,1837.9,12.05452]
[1746310429689,1.35967299,1838.0,1837.9,12.33644971]
[1746310430087,1.35967299,1838.0,1837.9,11.24852971]
[1746310430289,1.35967299,1838.0,1837.9,12.33644971]
[1746310431190,1.08786,1838.0,1837.9,12.33644971]
[1746310433990,1.35967299,1838.0,1837.9,12.33644971]
[1746310436794,1.08786,1838.0,1837.9,12.33644971]
[1746310437493,1.35967299,1838.0,1837.9,11.24852971]
[1746310437696,3.12757299,1838.0,1837.9,11.24852971]
[1746310438094,3.12757299,1838.0,1837.9,7.53052971]
[1746310439387,3.12757299,1838.0,1837.9,3.96752971]
[1746310440592,6.06356,1838.0,1837.9,3.96752971]
[1746310440797,6.06356,1838.0,1837.9,5.05544971]
[1746310441093,6.06356,1838.0,1837.9,8.77344971]
[1746310442696,6.33537299,1838.0,1837.9,7.68552971]
[1746310443295,6.33537299,1838.0,1837.9,8.77344971]
[1746310443894,4.29566,1838.0,1837.9,8.77344971]
[1746310444099,4.29566,1838.0,1837.9,5.05544971]
[1746310444997,4.56747299,1838.0,1837.9,5.05544971]
[1746310445195,4.29566,1838.0,1837.9,8.77344971]
[1746310445398,4.56747299,1838.0,1837.9,8.77344971]
[1746310445993,4.56747299,1838.0,1837.9,7.68552971]
[1746310446396,6.46537299,1838.0,1837.9,7.68552971]
[1746310446598,6.46537299,1838.0,1837.9,3.718]
[1746310446897,1.08792,1837.9,1837.8,7.14e-06]
[1746310447198,6.74793299,1837.9,1837.8,7.14e-06]
[1746310447392,11.74793299,1837.9,1837.8,7.14e-06]
[1746310451004,29.53834933,1837.9,1837.8,7.14e-06]
[1746310451203,1.35991299,1837.6,1837.5,3.1746]
[1746310451498,4.56771299,1837.6,1837.5,3.1746]
[1746310451996,1.08833,1837.3,1837.1,3.554]
[1746310452201,4.29614,1837.2,1837.1,3.1746]
[1746310452502,1.08834,1837.2,1837.1,1.5808]
[1746310452703,1.08834,1837.2,1837.1,7.95112971]
[1746310452895,1.08834,1837.2,1837.1,6.86272971]
[1746310454301,1.08834,1837.2,1837.1,1.86272971]
[1746310454701,1.08834,1837.2,1837.1,1.5808]
[1746310454900,4.29614,1837.2,1837.1,1.86272971]
[1746310456006,4.29614,1837.2,1837.1,0.28192971]
[1746310456205,6.35144535,1837.2,1837.1,0.28192971]
[1746310457397,6.35130172,1837.2,1837.1,0.28192971]
[1746310458101,6.00844,1837.2,1837.1,0.28192971]
[1746310459204,4.29614,1837.2,1837.1,0.28192971]
[1746310459509,1.08842,1837.1,1836.9,4.29209]
[1746310459901,1.08842,1837.1,1837.0,0.28192971]
[1746310460604,1.08842,1837.1,1837.0,1.37037971]
[1746310461011,4.56799299,1837.2,1837.0,1.37037971]
[1746310461309,4.56799299,1837.2,1837.1,0.28192971]
[1746310462407,4.29618,1837.2,1837.1,0.28192971]
[1746310463504,4.56799299,1837.2,1837.1,0.28192971]
[1746310464109,1.36011299,1837.3,1837.1,0.28192971]
[1746310464311,1.36011299,1837.3,1837.2,1.89742971]
[1746310464514,1.36011299,1837.3,1837.2,3.46722971]
[1746310465115,1.36011299,1837.3,1837.2,7.18522971]
[1746310465812,3.04611299,1837.3,1837.2,5.2878]
[1746310466217,3.04611299,1837.3,1837.2,6.9167]
[1746310467215,3.04611299,1837.3,1837.2,3.1987]
[1746310467514,1.36011299,1837.3,1837.2,3.1987]
[1746310468109,0.27181299,1837.5,1837.3,1.08828]
[1746310468314,4.56777299,1837.5,1837.4,3.182]
[1746310472319,1.35997299,1837.5,1837.4,3.46392971]
[1746310472711,4.56777299,1837.5,1837.4,3.46392971]
[1746310473117,4.56777299,1837.5,1837.4,7.18192971]
[1746310474913,3.47961299,1837.5,1837.4,8.27014971]
[1746310475113,4.29596,1837.5,1837.4,7.18192971]
[1746310475518,3.2078,1837.5,1837.4,8.27014971]
[1746310476020,4.29596,1837.5,1837.4,8.27014971]
[1746310477328,4.56777299,1837.5,1837.4,8.27014971]
[1746310477728,3.47961299,1837.5,1837.4,8.27014971]
[1746310478731,4.56777299,1837.5,1837.4,8.27014971]
[1746310480431,1.35997299,1837.5,1837.4,8.27014971]
[1746310484432,0.27181299,1837.5,1837.4,8.27014971]
[1746310484728,0.27181299,1837.5,1837.4,5.57342971]
[1746310484933,3.09797299,1837.5,1837.4,3.718]
[1746310485234,1.08822,1837.4,1837.3,1.5786]
[1746310485730,1.08822,1837.4,1837.3,1.86052971]
[1746310486132,1.08822,1837.4,1837.3,5.57852971]
[1746310488638,1.08822,1837.4,1837.3,6.66680971]
[1746310489933,1.08822,1837.4,1837.3,5.57852971]
[1746310492337,3.64361299,1837.5,1837.3,5.57852971]
[1746310492537,4.29602,1837.4,1837.3,6.38485]
[1746310493126,4.29602,1837.4,1837.3,6.66677971]
[1746310493939,4.29602,1837.4,1837.3,5.57852971]
[1746310494835,4.56783299,1837.4,1837.3,5.57852971]
[1746310495032,4.56783299,1837.4,1837.3,6.66680971]
[1746310496635,4.56783299,1837.4,1837.3,5.57852971]
[1746310497031,4.56783299,1837.4,1837.3,6.66680971]
[1746310497839,1.36003299,1837.4,1837.3,6.66680971]
[1746310498440,1.36003299,1837.4,1837.3,5.57852971]
[1746310499833,1.36003299,1837.4,1837.3,6.66680971]
[1746310500036,0.27181299,1837.4,1837.3,6.66680971]
[1746310501542,1.36003299,1837.4,1837.3,6.66680971]
[1746310502741,1.36003299,1837.4,1837.3,5.57852971]
[1746310502940,3.08703299,1837.4,1837.3,5.57852971]
[1746310504443,3.08703299,1837.4,1837.3,3.718]
[1746310504742,4.38343299,1837.4,1837.3,3.718]
[1746310505141,1.0884,1837.1,1837.0,3.1704]
[1746310505649,1.0884,1837.1,1837.0,4.54077971]
[1746310505844,1.0884,1837.1,1837.0,3.45232971]
[1746310506041,1.0884,1837.1,1837.0,4.54077971]
[1746310506244,1.0884,1837.1,1837.0,8.25877971]
[1746310506650,4.29617,1837.2,1837.0,8.25873971]
[1746310506946,4.56798299,1837.2,1837.1,1.90772971]
[1746310507147,4.29617,1837.2,1837.1,1.90772971]
[1746310507748,4.29617,1837.2,1837.1,2.99612971]
[1746310507946,4.29617,1837.2,1837.1,1.90772971]
[1746310509946,4.29617,1837.2,1837.1,2.99612971]
[1746310510244,3.2078,1837.2,1837.1,2.99612971]
[1746310510451,1.08829,1837.3,1837.2,1.08834]
[1746310510747,1.08829,1837.3,1837.2,4.75776971]
[1746310510948,1.08829,1837.3,1837.2,3.66942971]
[1746310511245,6.4889308,1837.3,1837.2,7.38742971]
[1746310511749,6.4889308,1837.3,1837.2,8.47576971]
[1746310511950,5.4006408,1837.3,1837.2,8.47576971]
[1746310512950,6.4889208,1837.3,1837.2,8.47576971]
[1746310513638,5.4006408,1837.3,1837.2,8.47576971]
[1746310514650,3.60001101,1837.5,1837.4,1.08822]
[1746310514854,3.60001101,1837.5,1837.4,1.37014971]
[1746310515146,3.60001101,1837.5,1837.4,5.08814971]
[1746310515349,3.871824,1837.5,1837.4,6.74124971]
[1746310519153,1.35997299,1837.5,1837.4,6.74124971]
[1746310519546,0.27181299,1837.5,1837.4,6.74124971]
[1746310519854,1.35997299,1837.5,1837.4,6.74124971]
[1746310520453,0.27181299,1837.5,1837.4,6.74124971]
[1746310521455,1.35997299,1837.5,1837.4,5.65302971]
[1746310521656,4.69367299,1837.5,1837.4,5.3711]
[1746310522753,4.69367299,1837.5,1837.4,3.718]
[1746310523155,0.27181299,1837.4,1837.1,1.725]
[1746310523354,1.08833,1837.3,1837.1,2.81338]
[1746310523756,1.6294,1837.2,1837.1,2.81338]
[1746310524054,2.71774,1837.2,1837.1,2.81338]
[1746310524256,2.98955299,1837.2,1837.1,2.81338]
[1746310524959,1.90121299,1837.2,1837.1,2.81338]
[1746310525156,1.90121299,1837.2,1837.1,4.55958]
[1746310525453,1.6294,1837.2,1837.1,4.55958]
[1746310526857,2.71774,1837.2,1837.1,4.55958]
[1746310527049,1.6294,1837.2,1837.1,4.55958]
[1746310527758,2.98955299,1837.2,1837.1,4.55958]
[1746310528856,1.90121299,1837.2,1837.1,4.55958]
[1746310529158,2.98955299,1837.2,1837.1,4.55958]
[1746310529757,2.98955299,1837.2,1837.1,4.84150971]
[1746310529957,2.98955299,1837.2,1837.1,3.75312971]
[1746310530650,2.98955299,1837.2,1837.1,4.84152971]
[1746310534363,2.98955299,1837.2,1837.1,3.75312971]
[1746310534758,4.59495299,1837.2,1837.1,3.75312971]
[1746310535056,4.59495299,1837.2,1837.1,4.84152971]
[1746310537359,4.59495299,1837.2,1837.1,1.0884]
[1746310539460,0.27181299,1836.8,1836.5,7.25187871]
[1746310539651,4.29649,1836.6,1836.5,7.25187871]
[1746310539856,4.56830299,1836.6,1836.5,7.25187871]
[1746310540057,5.94509,1836.6,1836.5,7.25187871]
[1746310540358,5.94509,1836.6,1836.5,10.96987871]
[1746310540759,5.94509,1836.6,1836.5,12.65267871]
[1746310541261,3.47961299,1836.6,1836.5,12.93460842]
[1746310541664,4.29649,1836.6,1836.5,12.93460842]
[1746310541866,6.03999,1836.6,1836.5,12.93460842]
[1746310542367,4.9513,1836.6,1836.5,12.93460842]
[1746310542661,3.2078,1836.6,1836.5,12.93460842]
[1746310543357,3.2078,1836.6,1836.5,6.77147971]
[1746310543358,9.3027538,1836.6,1836.5,6.77147971]
[1746310544960,6.0949538,1836.6,1836.5,6.77147971]
[1746310545457,6.0949538,1836.6,1836.5,11.77147971]
[1746310545763,6.0949538,1836.6,1836.5,6.77147971]
[1746310546068,1.08857,1836.9,1836.5,5.68272971]
[1746310546367,1.36038299,1836.9,1836.8,0.28192971]
[1746310546969,1.36038299,1836.9,1836.8,1.37049971]
[1746310547169,1.36038299,1836.9,1836.8,5.08849971]
[1746310547561,1.36038299,1836.9,1836.8,6.70319971]
[1746310549575,0.27181299,1836.9,1836.8,6.70319971]
[1746310550374,8.6775308,1837.0,1836.8,6.70319971]
[1746310550564,8.6775308,1837.0,1836.9,4.35761]
[1746310550769,5.09501299,1837.0,1836.9,4.35761]
[1746310551173,5.09501299,1837.0,1836.9,8.07561]
[1746310551374,5.09501299,1837.0,1836.9,6.9871]
[1746310551573,5.09501299,1837.0,1836.9,8.07561]
[1746310553976,3.47961299,1837.0,1836.9,8.07561]
[1746310554173,3.47961299,1837.0,1836.9,8.35753971]
[1746310557980,4.56806299,1837.0,1836.9,8.35753971]
[1746310558180,3.47961299,1837.0,1836.9,8.35753971]
[1746310560082,4.56806299,1837.0,1836.9,8.35753971]
[1746310561886,3.47961299,1837.0,1836.9,8.35753971]
[1746310562086,4.56806299,1837.0,1836.9,8.35753971]
[1746310564187,4.56806299,1837.0,1836.9,8.07561]
[1746310564391,4.56806299,1837.0,1836.9,8.35753971]
[1746310564787,3.2078,1837.0,1836.9,8.35753971]
[1746310567788,3.47961299,1837.0,1836.9,8.35753971]
[1746310570089,3.47961299,1837.0,1836.9,11.89553971]
[1746310570090,3.2078,1837.0,1836.9,11.89553971]
[1746310571990,0.27181299,1837.1,1837.0,1.08845]
[1746310572193,0.27181299,1837.1,1837.0,4.69177971]
[1746310573294,0.27181299,1837.1,1837.0,8.40977971]
[1746310574593,3.47961299,1837.2,1837.1,1.0884]
[1746310574789,3.47961299,1837.2,1837.1,2.96372971]
[1746310581288,0.27181299,1837.2,1837.1,2.96372971]
[1746310583799,0.27181299,1837.3,1837.2,1.08834]
[1746310584096,0.27181299,1837.3,1837.2,6.37776971]
[1746310584296,0.27181299,1837.3,1837.2,10.09576971]
[1746310584796,5.15401299,1837.4,1837.3,1.08828]
[1746310584992,5.15401299,1837.4,1837.3,2.73338]
[1746310585293,5.15401299,1837.4,1837.3,6.45138]
[1746310590399,3.47961299,1837.4,1837.3,6.45138]
[1746310591298,5.17751299,1837.4,1837.3,6.45138]
[1746310594599,1.96971299,1837.4,1837.3,6.45138]
[1746310594899,5.17751299,1837.4,1837.3,6.73330971]
[1746310599599,4.9057,1837.4,1837.3,6.73330971]
[1746310599805,0.27181299,1837.5,1837.4,1.08822]
[1746310600104,0.27181299,1837.5,1837.4,4.63324971]
[1746310601302,3.2078,1837.6,1837.5,1.08816]
[1746310601500,3.8543308,1837.7,1837.6,1.0881]
[1746310601695,3.58251781,1837.7,1837.6,1.0881]
[1746310601904,3.58251781,1837.7,1837.6,8.00402971]
[1746310603107,3.58251781,1837.7,1837.6,3.00402971]
[1746310603807,3.58251781,1837.7,1837.6,8.00402971]
[1746310604306,3.58251781,1837.9,1837.8,1.08798]
[1746310604506,3.58251781,1837.9,1837.8,4.90190971]
[1746310604703,3.58251781,1837.9,1837.8,4.61998]
[1746310604907,3.58251781,1837.9,1837.8,8.25420971]
[1746310605407,3.58251781,1837.9,1837.8,11.97220971]
[1746310606509,3.8543308,1837.9,1837.8,11.97220971]
[1746310608209,3.58251781,1837.9,1837.8,11.97220971]
[1746310608613,3.47961299,1838.0,1837.9,1.08792]
[1746310608809,3.47961299,1838.0,1837.9,2.98794971]
[1746310609204,3.47961299,1838.0,1837.9,6.70594971]
[1746310613613,0.27181299,1838.0,1837.9,6.70594971]
[1746310613812,0.27181299,1838.1,1838.0,1.08786]
[1746310614013,0.27181299,1838.1,1838.0,2.73416]
[1746310614313,0.27181299,1838.1,1838.0,6.73408971]
[1746310616914,3.47961299,1838.3,1838.2,1.08774]
[1746310617114,3.47961299,1838.3,1838.2,8.61966971]
[1746310617619,0.27181299,1838.3,1838.2,8.61966971]
[1746310617808,3.47961299,1838.3,1838.2,8.61966971]